[Event "CZE-ch Youth B16 2022"]
[Site "Luhacovice"]
[Date "2022.03.19"]
[Round "9.9"]
[White "Pelc, Adam"]
[Black "Vasinek, Martin"]
[Result "0-1"]
[ECO "B35"]
[WhiteElo "1811"]
[BlackElo "1594"]
[Annotator "NA"]
[PlyCount "56"]
[EventDate "2022.03.12"]
[EventType "swiss"]
[EventCountry "CZE"]
[SourceTitle "playchess.com"]
[Source "ChessBase"]
[SourceQuality "1"]
[TimeControl "40/5400+30:1800+30"]

1. e4 c5 2. Nf3 Nc6 3. d4 cxd4 4. Nxd4 g6 5. Nc3 Bg7 6. Be3 Nf6 7. Bc4 Qa5 8. O-O O-O 9. f3 d6 10. Qd2 Bd7 11. Kh1 Rfc8 12. Bb3 Ne5 13. Qe2 Rab8 14. a4 a6 15. Rfd1 Rc7 16. Bd2 Qb6 17. Bg5 Qc5 18. Be3 Qa5 19. Bd5 Rcc8 20. f4 Neg4 21. Nb3 Qc7 22. Bd4 e6 23. e5 dxe5 24. fxe5 Nxd5 25. Nxd5 exd5 26. Nc5 Nh6 27. Qf3 Bg4 28. Qxd5 Rd8 0-1

[Event "CZE-ch Youth B16 2022"]
[Site "Luhacovice"]
[Date "2022.03.19"]
[Round "9.10"]
[White "Kubiczek, Michal"]
[Black "Zrubek, Adam"]
[Result "1-0"]
[ECO "D07"]
[WhiteElo "1720"]
[BlackElo "1661"]
[Annotator "NA"]
[PlyCount "91"]
[EventDate "2022.03.12"]
[EventType "swiss"]
[EventCountry "CZE"]
[SourceTitle "playchess.com"]
[Source "ChessBase"]
[SourceQuality "1"]
[TimeControl "40/5400+30:1800+30"]

1. d4 {[%emt 0:00:04]} d5 {[%emt 0:00:06]} 2. c4 {[%emt 0:00:07]} Nc6 {[%emt 0:00:13]} 3. Nc3 {[%emt 0:00:14]} Nf6 {[%emt 0:00:08]} 4. cxd5 {[%emt 0:00:21]} Nxd5 {[%emt 0:02:22]} 5. Nf3 {[%emt 0:00:23]} Bg4 {[%emt 0:03:13]} 6. e4 {[%emt 0:00:31]} Nxc3 {[%emt 0:06:57]} 7. bxc3 {[%emt 0:02:02]} e6 {[%emt 0:02:40]} 8. Rb1 {[%emt 0:05:18]} Rb8 {[%emt 0:01:44]} 9. Qa4 {[%emt 0:12:23]} Bxf3 {[%emt 0:10:29]} 10. gxf3 {[%emt 0:02:30]} Qd7 {[%emt 0:01:30]} 11. Bb5 {[%emt 0:00:41]} Rc8 {[%emt 0:07:50]} 12. Qc4 {[%emt 0:02:48]} a6 {[%emt 0:04:16]} 13. Ba4 {[%emt 0:03:14]} b5 {[%emt 0:04:23]} 14. Rxb5 {[%emt 0:01:38]} axb5 {[%emt 0:02:22]} 15. Bxb5 {[%emt 0:00:06]} Kd8 {[%emt 0:07:58]} 16. Bxc6 {[%emt 0:01:32]} Qe7 {[%emt 0:01:39]} 17. Qa6 {[%emt 0:06:54]} Qf6 {[%emt 0:06:13]} 18. Ke2 {[%emt 0:02:43]} Bd6 {[%emt 0:04:11]} 19. e5 {[%emt 0:03:23]} Bxe5 {[%emt 0:00:23]} 20. dxe5 {[%emt 0:00:02]} Qxe5+ {[%emt 0:00:22]} 21. Be3 {[%emt 0:00:18]} Ke7 {[%emt 0:03:54]} 22. Qa3+ {[%emt 0:01:21]} Kf6 {[%emt 0:00:41]} 23. f4 {[%emt 0:06:32]} Qh5+ {[%emt 0:01:25]} 24. Bf3 {[%emt 0:00:16]} Qb5+ {[%emt 0:00:21]} 25. Ke1 {[%emt 0:09:48]} c5 {[%emt 0:02:42]} 26. Qb3 {[%emt 0:03:10]} Qd3 {[%emt 0:05:36]} 27. c4 {[%emt 0:01:16]} Qxb3 {[%emt 0:01:39]} 28. axb3 {[%emt 0:00:06]} Rb8 {[%emt 0:03:09]} 29. Bd1 {[%emt 0:00:43]} Rhc8 {[%emt 0:01:01]} 30. Kd2 {[%emt 0:04:22]} Rc7 {[%emt 0:01:19]} 31. Rg1 {[%emt 0:00:43]} g6 {[%emt 0:01:20]} 32. Kc3 {[%emt 0:00:48]} Ra8 {[%emt 0:00:43]} 33. Bc2 {[%emt 0:00:16]} Ke7 {[%emt 0:01:15]} 34. Kb2 {[%emt 0:02:44]} f5 {[%emt 0:01:25]} 35. h4 {[%emt 0:02:47]} Kf7 36. f3 {[%emt 0:02:26]} h5 {[%emt 0:04:15]} 37. Kc3 {[%emt 0:05:38]} Ra2 {[%emt 0:03:06]} 38. Rb1 {[%emt 0:01:19]} Ke7 {[%emt 0:02:14]} 39. b4 {[%emt 0:02:54]} Ra3+ {[%emt 0:01:47]} 40. Bb3 {[%emt 0:00:25]} cxb4+ {[%emt 0:01:51]} 41. Kxb4 {[%emt 0:30:02]} Ra8 {[%emt 0:30:29]} 42. Bc5+ {[%emt 0:01:02]} Kd7 {[%emt 0:00:00]} 43. Bb6 {[%emt 0:00:00]} Rc6 {[%emt 0:00:00]} 44. c5 {[%emt 0:00:00]} Kc8 {[%emt 0:00:00]} 45. Kb5 {[%emt 0:00:00]} Kb7 {[%emt 0:00:00]} 46. Rd1 {[%emt 0:00:00]} 1-0

[Event "CZE-ch Youth B16 2022"]
[Site "Luhacovice"]
[Date "2022.03.19"]
[Round "9.11"]
[White "Oborny, Stanislav"]
[Black "Mrazek, Roman"]
[Result "1/2-1/2"]
[ECO "D18"]
[WhiteElo "1674"]
[BlackElo "1820"]
[Annotator "NA"]
[PlyCount "60"]
[EventDate "2022.03.12"]
[EventType "swiss"]
[EventCountry "CZE"]
[SourceTitle "playchess.com"]
[Source "ChessBase"]
[SourceQuality "1"]
[TimeControl "40/5400+30:1800+30"]

1. c4 {[%emt 0:00:11]} c6 {[%emt 0:00:00]} 2. d4 {[%emt 0:00:09]} d5 {[%emt 0:00:11]} 3. Nc3 {[%emt 0:00:41]} Nf6 {[%emt 0:00:15]} 4. Nf3 {[%emt 0:00:44]} dxc4 {[%emt 0:00:07]} 5. a4 {[%emt 0:00:25]} Bf5 {[%emt 0:00:20]} 6. e3 {[%emt 0:02:24]} e6 {[%emt 0:00:21]} 7. Bxc4 {[%emt 0:00:48]} Bb4 {[%emt 0:00:21]} 8. O-O {[%emt 0:01:03]} Nbd7 {[%emt 0:00:07]} 9. Qb3 {[%emt 0:02:27]} Qb6 {[%emt 0:06:47]} 10. Nd2 {[%emt 0:06:07]} Bg6 {[%emt 0:03:53]} (10... a5 $11 {keeps the balance.}) 11. Re1 {[%emt 0:04:25]} a5 {[%emt 0:03:52]} 12. Na2 {[%emt 0:11:05]} Be7 {[%emt 0:02:04]} 13. Nc3 {[%emt 0:02:11]} Bb4 {[%emt 0:01:20]} 14. Na2 {[%emt 0:02:56]} Be7 {[%emt 0:06:18]} 15. Nc3 {[%emt 0:06:41]} Bb4 {[%emt 0:17:26]} 16. Be2 {[%emt 0:06:38]} O-O 17. Bf3 {[%emt 0:02:35]} Rfd8 {[%emt 0:08:39]} 18. Nc4 {[%emt 0:01:25]} Qa7 $11 {[%emt 0:01:38]} 19. e4 {[%emt 0:02:59]} Rac8 {[%emt 0:01:49]} 20. Bg5 {[%emt 0:08:52]} h6 {[%emt 0:00:41]} 21. Be3 {[%emt 0:02:24]} Qb8 {[%emt 0:01:13]} 22. Rad1 {[%emt 0:02:30]} b6 {[%emt 0:05:36]} 23. Nd2 {[%emt 0:05:14]} e5 {[%emt 0:02:15]} 24. d5 {[%emt 0:05:58]} Nc5 {[%emt 0:00:41]} 25. Bxc5 {[%emt 0:00:45]} Bxc5 {[%emt 0:00:09]} 26. dxc6 {[%emt 0:01:27]} Rxc6 {[%emt 0:01:51]} 27. Nc4 {[%emt 0:01:01]} Rdc8 {[%emt 0:04:26]} 28. Ne3 {[%emt 0:03:34]} Bd4 {[%emt 0:02:37]} 29. Ncd5 {[%emt 0:02:01]} Nxd5 {[%emt 0:05:57]} 30. Nxd5 {[%emt 0:00:02]} Qd6 {[%emt 0:02:59]} 1/2-1/2

[Event "CZE-ch Youth B16 2022"]
[Site "Luhacovice"]
[Date "2022.03.19"]
[Round "9.12"]
[White "Trojan, Matyas"]
[Black "Simek, Viktor"]
[Result "1/2-1/2"]
[ECO "C45"]
[WhiteElo "1582"]
[BlackElo "1527"]
[Annotator "NA"]
[PlyCount "63"]
[EventDate "2022.03.12"]
[EventType "swiss"]
[EventCountry "CZE"]
[SourceTitle "playchess.com"]
[Source "ChessBase"]
[SourceQuality "1"]
[TimeControl "40/5400+30:1800+30"]

1. e4 {[%emt 0:00:03]} e5 {[%emt 0:00:03]} 2. Nf3 {[%emt 0:00:06]} Nc6 {[%emt 0:00:05]} 3. d4 {[%emt 0:00:04]} exd4 {[%emt 0:00:27]} 4. Nxd4 {[%emt 0:00:07]} Bc5 {[%emt 0:00:18]} 5. Nb3 {[%emt 0:00:09]} Bb6 {[%emt 0:00:04]} 6. Nc3 {[%emt 0:00:09]} d6 {[%emt 0:00:48]} 7. Bf4 {[%emt 0:00:31]} Nf6 {[%emt 0:01:39]} 8. Qe2 {[%emt 0:04:14]} Be6 {[%emt 0:06:05]} 9. O-O-O {[%emt 0:02:34]} Qe7 {[%emt 0:01:15]} 10. f3 {[%emt 0:14:05]} O-O-O {[%emt 0:00:55]} 11. Bg5 {[%emt 0:15:01]} h6 {[%emt 0:00:47]} 12. Bh4 {[%emt 0:03:04]} g5 {[%emt 0:01:12]} 13. Bf2 {[%emt 0:02:26]} Nd7 {[%emt 0:10:09]} 14. Bxb6 {[%emt 0:06:13]} Nxb6 {[%emt 0:00:32]} 15. Nd4 {[%emt 0:01:17]} Nxd4 {[%emt 0:02:38]} 16. Rxd4 {[%emt 0:00:06]} Qf6 {[%emt 0:00:35]} 17. Qf2 {[%emt 0:02:52]} Rhe8 {[%emt 0:05:05]} 18. g3 {[%emt 0:07:19]} d5 {[%emt 0:10:04]} 19. exd5 {[%emt 0:03:11]} Nxd5 {[%emt 0:01:32]} 20. Nxd5 {[%emt 0:01:48]} Bxd5 {[%emt 0:02:01]} 21. Bh3+ {[%emt 0:00:52]} Kb8 {[%emt 0:01:14]} 22. Rhd1 {[%emt 0:02:35]} Be6 {[%emt 0:02:51]} 23. Rxd8+ {[%emt 0:02:19]} Rxd8 {[%emt 0:00:05]} 24. Rxd8+ {[%emt 0:00:07]} Qxd8 {[%emt 0:00:03]} 25. Bxe6 {[%emt 0:00:08]} fxe6 {[%emt 0:00:05]} 26. Qd2 {[%emt 0:09:01]} Qf6 {[%emt 0:01:19]} 27. c3 {[%emt 0:02:49]} b6 {[%emt 0:01:16]} 28. Qd3 {[%emt 0:01:06]} Qe5 {[%emt 0:01:44]} 29. Kd2 {[%emt 0:01:15]} Qc5 {[%emt 0:01:07]} 30. Qe4 {[%emt 0:01:52]} Qg1 {[%emt 0:01:13]} 31. Qe2 {[%emt 0:01:54]} Qb1 {[%emt 0:00:33]} 32. Qxe6 {[%emt 0:01:23]} 1/2-1/2